lending/lending_fUSD_20240711
["ID","MTS","AMOUNT","RATE_DAILY","PERIOD"]
[331712854,1720684237990,-1500.0,0.000139,2]
[331712855,1720684237999,-1000.0,0.000139,2]
[331712856,1720684238009,-174.934313,0.000139,2]
[331712857,1720684238019,-592.09411861,0.000139,2]
[331712858,1720684238029,-630.7222,0.000139,2]
[331712859,1720684238039,-1000.0,0.000139,2]
[331712860,1720684238049,-225.0,0.000139,2]
[331712861,1720684238058,-660.441358,0.000139,2]
[331712862,1720684238068,-160.66888185,0.000139,2]
[331712863,1720684238077,-709.84454844,0.000139,2]
[331712864,1720684238087,-2367.70152288,0.000139,2]
[331712866,1720684238097,-570.1275396,0.00013907,2]
[331712868,1720684238106,-2215.5583861,0.00013907,2]
[331712870,1720684238116,-500.0,0.00013917,2]
[331712872,1720684238126,-500.0,0.00013934,2]
[331712874,1720684238136,-500.0,0.00013934,2]
[331712876,1720684238145,-500.0,0.00013934,2]
[331712877,1720684238155,-500.0,0.00013934,2]
[331712879,1720684238165,-4518.9737889,0.00013962,2]
[331712881,1720684238175,-252.69649912,0.00013972,2]
[331712883,1720684238184,-1166.214362,0.00013973,2]
[331712885,1720684238195,-2000.0,0.00013973,3]
[331712889,1720684238206,-433.1588779,0.00013981,2]
[331712891,1720684238216,-296.1902162,0.00013981,2]
[331712893,1720684238227,-159.2215544,0.00013981,2]
[331712895,1720684238237,-1682.1904371,0.00013981,2]
[331712897,1720684238247,-1148.8224881,0.00013981,2]
[331712899,1720684238256,-615.4545392,0.00013981,2]
[331712901,1720684238266,-3090.0343771,0.00013981,2]
[331712903,1720684238275,-1661.0949652,0.00013981,2]
[331712905,1720684238286,-173.5,0.00013982,2]
[331712907,1720684238297,-500.0,0.00013989,2]
[331712909,1720684238307,-500.0,0.00013989,2]
[331712911,1720684238317,-500.0,0.00013989,2]
[331712913,1720684238327,-500.0,0.00013989,2]
[331712915,1720684238336,-159.90390875,0.0001399,2]
[331712917,1720684238346,-159.90390875,0.0001399,2]
[331712919,1720684238356,-159.90390875,0.0001399,2]
[331712921,1720684238365,-463.36648587,0.00013995,2]
[331712923,1720684238375,-171.92269904,0.00013999,2]
[331712925,1720684238386,-230.38098571,0.00013999,2]
[331712927,1720684238395,-500.0,0.00013999,2]
[331712929,1720684238405,-534.85044635,0.00013999,2]
[331712931,1720684238415,-366.36882049,0.00013999,2]
[331712933,1720684238424,-500.0,0.00013999,2]
[331712935,1720684238434,-611.82547441,0.00013999,2]
[331712937,1720684238443,-500.0,0.00013999,2]
[331712939,1720684238453,-500.0,0.00013999,2]
[331712941,1720684238462,-500.0,0.00013999,2]
[331712943,1720684238472,-500.0,0.00013999,2]
[331712945,1720684238482,-345.75838604,0.00013999,2]
[331712947,1720684238492,-543.0,0.00014,2]
[331712950,1720684238502,-100938.45025031,0.00014,2]
[331712952,1720684238512,-81549.06663988,0.00014,2]
[331712975,1720684238719,-33634.47889026,0.00014,2]
[331712977,1720684238733,-8355.461751,0.00014,2]
[331712980,1720684238745,-18776.48339231,0.00014,2]
[331712981,1720684238763,-561.434,0.00014,2]
[331712983,1720684238775,-1394.66312371,0.00014,2]
[331712985,1720684238787,-286.3073085,0.00014,2]
[331712988,1720684238802,-26988.5,0.00014,2]
[331712990,1720684238814,-423661.41254901,0.00014,2]
[331712992,1720684238826,-61195.67491111,0.00014,2]
[331712994,1720684238836,-416210.56808746,0.00014,2]
[331712997,1720684238855,-1244.38699109,0.00014,2]
[331713083,1720684239720,-150.50133858,0.000139,2]
[331713085,1720684239731,-52776.40233213,0.00014,2]
[331713096,1720684239828,-1065.24,0.00014,2]
[331713102,1720684239881,-426.096,0.00014,2]
[331713106,1720684239937,-330.4,0.00014,2]
[331713414,1720684242940,-459.382631,0.00013731,2]
[331713416,1720684242950,-63053.21995069,0.00014,2]
[331713418,1720684242962,-327.565824,0.00014,2]
[331713595,1720684244975,-500.57827625,0.00014,2]
[331713685,1720684245787,-1224.74,0.00014,2]
[331713692,1720684245845,-495.9682351,0.00014,2]
[331713703,1720684245949,-1516.4753396,0.00014,2]
[331713710,1720684246004,-155464.98871259,0.00014,2]
[331714477,1720684569457,211.539,0.00010511,2]
[331714478,1720684569489,215.871,0.00010511,2]
[331714482,1720684707359,1351.36716307,0.00011199,2]
[331714484,1720684754600,266.62300381,0.00011199,2]
[331714485,1720684763605,215.87645086,0.00011199,2]
[331714486,1720684765495,266.62300381,0.00011199,2]
[331714489,1720684782343,158.72815784,0.00011199,2]
[331714490,1720684801633,891.01341507,0.00011199,2]
[331714491,1720684815307,2114.27194275,0.00011199,2]
[331714492,1720684831450,150.0,0.00024746,120]
[331714493,1720684865744,427.80632902,0.00011199,2]
[331714494,1720684892341,1000.0,0.00011,2]
[331714498,1720684923212,1000.0,0.000115,2]
[331714500,1720685010826,150.0,0.00025675,120]
[331714502,1720685068489,467.16885136,0.00025,60]
[331714507,1720685166760,15285.98212095,0.00011199,2]
[331714508,1720685170522,434.65,0.00010164,2]
[331714513,1720685209601,602.8882208,0.00011199,2]
[331714514,1720685216922,155.3394393,0.00027,120]
[331714515,1720685243286,534.09245489,0.00011199,2]
[331714517,1720685265235,545.14885761,0.00011199,2]
[331714519,1720685280366,158.72815784,0.00011199,2]
[331714544,1720685365238,200.0,0.00011842,2]
[331714546,1720685371144,150.0,0.00023671,120]
[331714547,1720685375263,500.0,0.0001185,2]
[331714548,1720685384854,297.19218126,0.00011199,2]
[331714549,1720685385320,4796.1,0.00011875,2]
[331714550,1720685408244,745.38,0.00011868,2]
[331714551,1720685431474,150.0,0.0002165,120]
[331714553,1720685431787,-572.9066,0.0001202,2]
[331714554,1720685431798,-165.25,0.000121,2]
[331714555,1720685432053,-166.80872417,0.00012101,2]
[331714556,1720685432065,-83.19127583,0.00012101,2]
[331714557,1720685432075,-274.2724383,0.00012113,2]
[331714558,1720685432088,-1400.8175617,0.00012113,2]
[331714559,1720685432097,-300.0,0.00012114,2]
[331714560,1720685432107,-3313.91,0.00012115,2]
[331714562,1720685432116,-1244.53,0.00012116,2]
[331714564,1720685432126,-150.0,0.0001212,2]
[331714565,1720685432135,-4427.97911728,0.0001212,2]
[331714566,1720685432147,-401.61999996,0.0001212,2]
[331714567,1720685432159,-337.64088276,0.0001212,2]
[331714569,1720685432168,-316.14642975,0.00012121,2]
[331714574,1720685432207,-11478.0,0.00012121,2]
[331714575,1720685432223,-681.39069848,0.00012121,2]
[331714576,1720685432234,-428.45648914,0.00012121,2]
[331714577,1720685432246,-591.41965906,0.00012121,2]
[331714578,1720685432257,-854.16488114,0.00012121,2]
[331714579,1720685432268,-464.47486671,0.00012121,2]
[331714580,1720685432279,-1132.38722525,0.00012121,2]
[331714581,1720685432290,-4285.64,0.00012121,2]
[331714582,1720685432302,-534.84975047,0.00012121,2]
[331714583,1720685432311,-164.34,0.00012134,2]
[331714584,1720685432320,-250.0,0.00012149,2]
[331714585,1720685432329,-150.99,0.00012302,2]
[331714586,1720685432338,-1086.47233966,0.00012354,2]
[331714587,1720685432350,-1619.09766034,0.00012354,2]
[331714588,1720685432359,-499.99,0.00012354,2]
[331714589,1720685432368,-168.75,0.0001242,2]
[331714590,1720685432377,-158.43,0.00012424,2]
[331714591,1720685432387,-434.65,0.00012427,2]
[331714592,1720685432397,-6727.6483641,0.00012441,2]
[331714593,1720685432409,-1486.4116359,0.00012441,2]
[331714594,1720685432418,-158.43,0.00012471,2]
[331714595,1720685432428,-167.0,0.00012472,2]
[331714596,1720685432437,-158.43,0.00012517,2]
[331714597,1720685432447,-158.43,0.00012563,2]
[331714598,1720685432456,-1000.0,0.00012569,2]
[331714599,1720685432465,-150.0,0.000126,2]
[331714600,1720685432475,-158.43,0.00012609,2]
[331714601,1720685432484,-158.43,0.00012656,2]
[331714602,1720685432493,-158.43,0.00012702,2]
[331714603,1720685432503,-158.43,0.00012748,2]
[331714604,1720685432512,-158.43,0.00012794,2]
[331714605,1720685432521,-158.43,0.00012841,2]
[331714606,1720685432531,-158.43,0.00012887,2]
[331714607,1720685432541,-158.43,0.00012933,2]
[331714608,1720685432550,-199.52,0.00012966,2]
[331714609,1720685432560,-199.52,0.00012969,2]
[331714610,1720685432569,-199.52,0.00012973,2]
[331714611,1720685432578,-199.52,0.00012976,2]
[331714612,1720685432587,-158.43,0.00012979,2]
[331714613,1720685432597,-199.52,0.0001298,2]
[331714614,1720685432616,-199.52,0.00012983,2]
[331714615,1720685432627,-199.52,0.00012987,2]
[331714616,1720685432637,-199.52,0.0001299,2]
[331714617,1720685432648,-199.52,0.00012993,2]
[331714618,1720685432659,-199.52,0.00012997,2]
[331714619,1720685432669,-1250.0,0.00013,2]
[331714620,1720685432680,-199.52,0.00013,2]
[331714621,1720685432690,-199.52,0.00013004,2]
[331714622,1720685432700,-199.52,0.00013007,2]
[331714623,1720685432709,-199.52,0.00013011,2]
[331714624,1720685432719,-199.52,0.00013014,2]
[331714625,1720685432728,-199.52,0.00013017,2]
[331714626,1720685432738,-199.52,0.00013021,2]
[331714627,1720685432748,-199.52,0.00013024,2]
[331714628,1720685432757,-158.43,0.00013026,2]
[331714629,1720685432767,-199.52,0.00013028,2]
[331714630,1720685432777,-199.52,0.00013031,2]
[331714631,1720685432787,-158.43,0.00013072,2]
[331714632,1720685432797,-2141.46146477,0.00013128,2]
[331714633,1720685432806,-255.0,0.00013198,2]
[331714634,1720685432817,-420.0,0.00013297,2]
[331714635,1720685432827,-2496.51225217,0.00013472,2]
[331714636,1720685432837,-2496.51225217,0.00013472,2]
[331714637,1720685432847,-498.49126833,0.00013516,2]
[331714638,1720685432857,-155.0,0.00013516,2]
[331714639,1720685432867,-158.72815784,0.00013516,2]
[331714640,1720685432877,-544.37888191,0.00013516,2]
[331714641,1720685432886,-410.88428034,0.00013543,2]
[331714642,1720685432896,-1811.11178441,0.00013636,2]
[331714643,1720685432906,-171.46830767,0.0001369,2]
[331714644,1720685432915,-171.46830767,0.0001369,2]
[331714645,1720685432925,-1973.5122789,0.00013697,2]
[331714646,1720685432935,-166.8,0.00013699,2]
[331714647,1720685432945,-29999.99,0.00013699,2]
[331714648,1720685432956,-19999.99,0.00013699,2]
[331714649,1720685432966,-9511.31,0.00013699,2]
[331714650,1720685432976,-4417.99,0.00013699,2]
[331714651,1720685432986,-6256.19,0.00013699,2]
[331714652,1720685432996,-150.0,0.00013699,2]
[331714653,1720685433005,-187070.69199194,0.000137,2]
[331714655,1720685437711,-3862.00569029,0.00012114,2]
[331714656,1720685437724,-2526.83659011,0.00012114,2]
[331714657,1720685437734,-265.49947549,0.00013543,2]
[331714658,1720685437743,-113838.03877905,0.000137,2]
[331714659,1720685437757,-41006.78592447,0.000137,2]
[331714660,1720685437769,-15122.16734889,0.000137,2]
[331714661,1720685437805,-10651.93547108,0.000137,2]
[331714662,1720685437817,-2838.32758398,0.000137,2]
[331714663,1720685437831,-348.06047024,0.000137,2]
[331714664,1720685437889,-1433892.62649203,0.000137,2]
[331714665,1720685437904,-14796.45727603,0.000137,2]
[331714666,1720685437981,-351821.29895254,0.000137,2]
[331714667,1720685438036,-438.64312681,0.000137,2]
[331714753,1720685439734,-322.1584825,0.00013636,2]
[331714754,1720685439744,-30.60061494,0.000137,2]
[331714755,1720685439756,-2870.4943906,0.000137,2]
[331714756,1720685439787,-156395.65462425,0.000137,2]
[331714757,1720685439799,-6906.00280481,0.000137,2]
[331714758,1720685440035,-117182.03944402,0.000137,2]
[331714759,1720685440048,-1760.19550154,0.000137,2]
[331714760,1720685440060,-469.13404001,0.000137,2]
[331714761,1720685440072,-1384.39065872,0.000137,2]
[331714762,1720685440112,-1500.0,0.000137,2]
[331714894,1720685442900,-786.78682191,0.000137,2]
[331714895,1720685442913,-270.2640105,0.000137,2]
[331714896,1720685442926,-731.76064264,0.000137,2]
[331714899,1720685445963,-697.64127667,0.000137,2]
[331714900,1720685446227,-6882.92088896,0.000137,2]
[331714901,1720685491451,150.0,0.00017235,120]
[331714914,1720685641537,3026.88693848,0.00011199,2]
[331714915,1720685674665,1565.29704726,0.00011199,2]
[331714916,1720685685600,448.29,0.00011021,2]
[331714920,1720685850883,150.0,0.00020848,120]
[331714923,1720685911396,150.0,0.00020142,120]
[331714924,1720685942305,685.36886605,0.00011199,2]
[331714925,1720685948728,2496.51225217,0.00011199,2]
[331714926,1720685974209,155.48793623,0.00011199,2]
[331714928,1720686091799,475.18187236,0.00011199,2]
[331714929,1720686091928,155.27013329,0.00011199,2]
[331714931,1720686113610,268.23268086,0.00011199,2]
[331715355,1720686137520,864.47858296,0.00011199,2]
[331715467,1720686212071,454.28,0.0001063,2]
[331715468,1720686285760,754.08786676,0.00011199,2]
[331715471,1720686430240,263.58284568,0.00011199,2]
[331715472,1720686430412,158.72815784,0.00011199,2]
[331715483,1720686448349,155.0,0.00011199,2]
[331715484,1720686451698,297.70719904,0.00011199,2]
[331715485,1720686468959,292.61554308,0.00011199,2]
[331715486,1720686470833,265.47446231,0.00011199,2]
[331715489,1720686525533,369.10201211,0.00011199,2]
[331715491,1720686553899,155.0,0.00011199,2]
[331715505,1720686632386,-173.15774171,0.00012173,2]
[331715506,1720686632399,-320.32905926,0.00012273,2]
[331715507,1720686632409,-1903.65279599,0.00012302,2]
[331715508,1720686632419,-300.0,0.00012482,2]
[331715509,1720686632429,-801.8841723,0.00012483,2]
[331715510,1720686633479,-2223.19328889,0.00012483,2]
[331715511,1720686633489,-23900.0,0.00012483,2]
[331715512,1720686633500,-167.0,0.00012504,2]
[331715513,1720686633510,-321.88,0.00012513,2]
[331715514,1720686633522,-158.96592151,0.00012543,2]
[331715515,1720686633533,-1000.0,0.00012544,2]
[331715516,1720686633544,-150.0,0.00012653,2]
[331715517,1720686633553,-250.0,0.00012654,2]
[331715518,1720686633563,-9999.99,0.00012654,2]
[331715519,1720686633574,-250.0,0.00012674,2]
[331715520,1720686633585,-173.1577417,0.00012816,2]
[331715521,1720686633595,-164.78,0.00012861,2]
[331715522,1720686633607,-167.25,0.00012872,2]
[331715523,1720686633618,-164.78,0.00012883,2]
[331715524,1720686633628,-454.28,0.00012894,2]
[331715525,1720686633639,-2135.59,0.00012894,2]
[331715526,1720686633649,-164.78,0.00012904,2]
[331715527,1720686633659,-499.99,0.00012916,2]
[331715528,1720686633669,-29999.99,0.00012916,2]
[331715529,1720686633679,-150.99,0.00012916,2]
[331715530,1720686633689,-10654.19,0.00012916,2]
[331715531,1720686633699,-1169.87,0.00012916,2]
[331715532,1720686633708,-169.33,0.00012917,2]
[331715533,1720686633721,-164.78,0.00012926,2]
[331715534,1720686633730,-300.41,0.00013178,2]
[331715535,1720686633740,-397.0,0.00013448,2]
[331715536,1720686633750,-158.72815784,0.00013516,2]
[331715537,1720686633760,-417.93936495,0.00013529,2]
[331715538,1720686633769,-1047.18369,0.0001356,2]
[331715539,1720686633779,-8186.1587,0.000136,2]
[331715540,1720686633788,-323.1997,0.000136,2]
[331715541,1720686633798,-1047.18369,0.0001362,2]
[331715542,1720686633808,-166.8,0.00013699,2]
[331715543,1720686633818,-64143.16086337,0.000137,2]
[331715544,1720686633828,-1047.1837,0.000137,2]
[331715545,1720686633838,-1047.1837,0.000137,2]
[331715546,1720686633848,-349.0,0.0001373,2]
[331715547,1720686633858,-255.0,0.00013754,2]
[331715548,1720686633868,-529.25177253,0.00013759,2]
[331715549,1720686633878,-205.3567,0.0001376,2]
[331715550,1720686633887,-158.9659215,0.0001376,2]
[331715551,1720686633897,-1047.18369,0.0001378,2]
[331715552,1720686633907,-500.0,0.00013782,2]
[331715553,1720686633916,-200.0,0.00013782,2]
[331715554,1720686633926,-161.14607222,0.0001379,2]
[331715555,1720686633935,-161.14607221,0.0001379,2]
[331715556,1720686633945,-222.35607186,0.00013799,2]
[331715557,1720686633955,-222.35607184,0.00013799,2]
[331715558,1720686633965,-222.35607184,0.00013799,2]
[331715559,1720686633975,-222.35607184,0.00013799,2]
[331715560,1720686634272,-222.35607184,0.00013799,2]
[331715561,1720686634283,-486.2125,0.000138,2]
[331715562,1720686634293,-1000.0,0.000138,2]
[331715563,1720686634302,-1047.1837,0.0001386,2]
[331715564,1720686634312,-200.0,0.00013887,2]
[331715565,1720686634322,-1285.5254,0.000139,2]
[331715566,1720686634331,-253.2166,0.000139,2]
[331715567,1720686634342,-1100.4928,0.000139,2]
[331715568,1720686634352,-3355.7269,0.000139,2]
[331715569,1720686634362,-2450.376,0.000139,2]
[331715570,1720686634372,-1860.323,0.000139,2]
[331715571,1720686634382,-1000.0,0.000139,2]
[331715572,1720686634392,-356.0,0.000139,2]
[331715573,1720686634402,-7500.0,0.000139,2]
[331715574,1720686634412,-1000.0,0.000139,2]
[331715575,1720686634422,-1032.89005916,0.000139,2]
[331715576,1720686634431,-861.0,0.000139,2]
[331715577,1720686634447,-3867.16436968,0.000139,2]
[331715578,1720686634461,-161.14607221,0.000139,2]
[331715579,1720686634470,-594.20517952,0.000139,2]
[331715580,1720686634480,-2000.0,0.00013973,3]
[331715581,1720686634490,-1506.0867018,0.0001399,2]
[331715582,1720686634500,-1186.3276038,0.0001399,2]
[331715583,1720686634510,-866.5685057,0.0001399,2]
[331715584,1720686634520,-546.8094077,0.0001399,2]
[331715585,1720686634529,-227.0503097,0.0001399,2]
[331715586,1720686634539,-409.0212747,0.0001399,2]
[331715587,1720686634549,-409.0212747,0.0001399,2]
[331715588,1720686634559,-409.0212747,0.0001399,2]
[331715589,1720686634569,-409.0212747,0.0001399,2]
[331715590,1720686634579,-409.0212747,0.0001399,2]
[331715591,1720686634589,-171.46830768,0.0001399,2]
[331715592,1720686634599,-161.26669,0.00013999,2]
[331715593,1720686634610,-500.0,0.00013999,2]
[331715594,1720686634620,-224.39531244,0.00013999,2]
[331715595,1720686634631,-357.07671871,0.00013999,2]
[331715596,1720686634641,-362.99375705,0.00013999,2]
[331715597,1720686634651,-255.67407275,0.00013999,2]
[331715598,1720686634661,-500.0,0.00013999,2]
[331715599,1720686634671,-501.40619301,0.00013999,2]
[331715600,1720686634680,-500.0,0.00013999,2]
[331715601,1720686634690,-500.0,0.00013999,2]
[331715602,1720686634700,-500.0,0.00013999,2]
[331715603,1720686634710,-500.0,0.00013999,2]
[331715604,1720686634719,-500.0,0.00013999,2]
[331715605,1720686634730,-150.0,0.00013999,2]
[331715606,1720686634739,-150.0,0.00013999,7]
[331715607,1720686634749,-681.0,0.00014,2]
[331715608,1720686634759,-114239.88269964,0.00014,2]
[331715609,1720686634768,-86443.91522835,0.00014,2]
[331715610,1720686634783,-2333.50701761,0.00014,2]
[331715611,1720686634795,-2207.40403079,0.00014,2]
[331715612,1720686634807,-1325.14524,0.00014,2]
[331715613,1720686634819,-603.38328281,0.00014,2]
[331715614,1720686634831,-5849.06297211,0.00014,2]
[331715615,1720686634843,-5314.0001,0.00014,2]
[331715616,1720686634854,-130926.93755013,0.00014,2]
[331715617,1720686634868,-289.3455407,0.00014,2]
[331715618,1720686634879,-2756.11977575,0.00014,2]
[331715619,1720686634890,-49975.5478722,0.00014,2]
[331715620,1720686634902,-12031.1613974,0.00014,2]
[331715621,1720686634914,-6286.357445,0.00014,2]
[331715622,1720686634928,-11111.14076,0.00014,2]
[331715623,1720686634940,-278.60878409,0.00014,2]
[331715624,1720686634953,-1115.8023317,0.00014,2]
[331715631,1720686638191,-158.72815784,0.00013472,2]
[331715632,1720686638202,-222.35607184,0.00013799,2]
[331715633,1720686638212,-29.17543018,0.00014,2]
[331715634,1720686638225,-695.50208201,0.00014,2]
[331715635,1720686638237,-14038.42116727,0.00014,2]
[331715636,1720686638257,-6198.42274109,0.00014,2]
[331715637,1720686638270,-1728.17909024,0.00014,2]
[331715638,1720686638283,-9147.58767893,0.00014,2]
[331715639,1720686638295,-4026.77650109,0.00014,2]
[331715640,1720686638319,-70075.718461,0.00014,2]
[331715641,1720686638332,-2109.83826179,0.00014,2]
[331715642,1720686638382,-160621.04182802,0.00014,2]
[331715643,1720686638443,-313.83906805,0.00014,2]
[331715644,1720686638455,-12637.20446166,0.00014,2]
[331715645,1720686638468,-1777.0,0.00014,2]
[331715646,1720686638505,-527.3426415,0.00014,2]
[331715647,1720686638518,-605.30007405,0.00014,2]
[331715648,1720686638530,-5380.29155532,0.00014,2]
[331715649,1720686638543,-384.2290936,0.00014,2]
[331715650,1720686638570,-657.76259654,0.00014,2]
[331715651,1720686638632,-434.55000021,0.00014,2]
[331715689,1720686640046,-222.35607184,0.000138,2]
[331715691,1720686640056,-25765.80109988,0.00014,2]
[331715693,1720686640069,-1663.5002,0.00014,2]
[331715695,1720686640111,-840.77658634,0.00014,2]
[331715696,1720686640123,-279.62940281,0.00014,2]
[331715697,1720686640135,-5493.5311552,0.00014,2]
[331715698,1720686640172,-578.06080476,0.00014,2]
[331715699,1720686640184,-13359.8266714,0.00014,2]
[331715700,1720686640196,-844.59940527,0.00014,2]
[331715701,1720686640208,-1882.16697509,0.00014,2]
[331715702,1720686640240,-1986.34492326,0.00014,2]
[331715703,1720686640252,-304.33735203,0.00014,2]
[331715704,1720686640263,-5830.1,0.00014,2]
[331715705,1720686640357,-924.77969147,0.00014,2]
[331715706,1720686640369,-2335.77121904,0.00014,2]
[331715707,1720686640381,-1007.52312096,0.00014,2]
[331715708,1720686640393,-1304.15494449,0.00014,2]
[331715709,1720686640405,-1506.18546673,0.00014,2]
[331715757,1720686643075,-1749.51585614,0.000139,2]
[331715758,1720686643139,-508.60590378,0.000139,2]
[331715759,1720686643151,-888.59737963,0.000139,2]
[331715760,1720686643160,-606.0,0.00014,2]
[331715761,1720686643170,-1049.4224684,0.00014,2]
[331715762,1720686643181,-1347.77790766,0.00014,2]
[331715763,1720686643192,-274.48906718,0.00014,2]
[331715764,1720686643203,-690.0,0.00014,2]
[331715765,1720686643214,-16343.625645,0.00014,2]
[331715766,1720686643268,-284.969686,0.00014,2]
[331715767,1720686643279,-1096.89745099,0.00014,2]
[331715768,1720686643327,-1785.68914033,0.00014,2]
[331715769,1720686643387,-273.64617296,0.00014,2]
[331715777,1720686645286,-328.04999985,0.00014,2]
[331715778,1720686646604,-222.35607184,0.00013833,2]
[331715779,1720686646614,-1139.53073816,0.00014,2]
[331715780,1720686646628,-1160.28479229,0.00014,2]
[331715781,1720686646640,-2163.7795871,0.00014,2]
[331715782,1720686646724,-1413.40063873,0.00014,2]
[331715783,1720686646735,-678.44,0.00014,2]
[331715785,1720686646874,-2.1905818,0.00014,2]
[331715786,1720686690887,150.0,0.00018886,120]
[331715787,1720686750896,150.0,0.00021166,120]
[331715792,1720686930629,465.21,0.00010962,2]
[331715795,1720687012279,35603.36425902,0.00011199,2]
[331715799,1720687072521,549.03136813,0.00014,120]
[331715801,1720687161328,748106.78689594,0.00027,120]
[331715813,1720687230723,1069.94736295,0.00011199,2]
[331715828,1720687518757,467.31,0.00010549,2]
[331715829,1720687529105,503.67779661,0.00011199,2]
[331715861,1720687832341,-216.61366641,0.00012302,2]
[331715862,1720687832350,-227.30730583,0.00012314,2]
[331715863,1720687832360,-263.679541,0.00012364,2]
[331715864,1720687832369,-300.0,0.00012426,2]
[331715865,1720687832379,-23900.0,0.00012427,2]
[331715866,1720687832388,-289.26216011,0.000125,2]
[331715867,1720687832401,-1659.74569352,0.000125,2]
[331715868,1720687832412,-757.07838199,0.0001251,2]
[331715869,1720687832422,-150.0,0.000126,2]
[331715870,1720687832432,-151.79,0.00012708,2]
[331715871,1720687832442,-250.0,0.00012721,2]
[331715872,1720687832452,-150.0,0.0001274,2]
[331715873,1720687832462,-1000.0,0.00012751,2]
[331715874,1720687832476,-167.25,0.00012755,2]
[331715875,1720687832485,-151.79,0.00012774,2]
[331715876,1720687832495,-150.0,0.00012782,2]
[331715877,1720687832505,-1666.81,0.00012783,2]
[331715878,1720687832514,-7074.21,0.00012783,2]
[331715879,1720687832523,-467.31,0.00012813,2]
[331715880,1720687832533,-169.33,0.00012815,2]
[331715881,1720687832543,-1161.71,0.00012815,2]
[331715882,1720687832552,-151.79,0.0001284,2]
[331715883,1720687832562,-151.79,0.00012906,2]
[331715884,1720687832572,-1146.0,0.00012909,2]
[331715885,1720687832582,-166.0,0.00012928,2]
[331715886,1720687832591,-151.79,0.00012973,2]
[331715887,1720687832601,-1250.0,0.00013,2]
[331715888,1720687832611,-490.02,0.00013,2]
[331715889,1720687832621,-151.79,0.00013039,2]
[331715890,1720687832630,-151.79,0.00013105,2]
[331715891,1720687832639,-151.79,0.00013171,2]
[331715892,1720687832656,-499.99,0.00013181,2]
[331715893,1720687832666,-151.79,0.00013237,2]
[331715894,1720687832676,-151.79,0.00013304,2]
[331715895,1720687832685,-151.79,0.0001337,2]
[331715896,1720687832695,-420.0,0.00013635,2]
[331715897,1720687832703,-785.20134825,0.0001368,2]
[331715898,1720687832713,-49460.74573139,0.00013681,2]
[331715899,1720687832723,-3110.4112111,0.00013759,2]
[331715900,1720687832732,-526.9209072,0.00013759,2]
[331715901,1720687832741,-150.0,0.00013759,2]
[331715902,1720687832751,-150.0,0.00013766,2]
[331715903,1720687832760,-150.0,0.0001378,2]
[331715904,1720687832769,-20256.53,0.00013781,2]
[331715905,1720687832779,-17899.6526,0.000138,2]
[331715906,1720687832788,-199.2846,0.000138,2]
[331715907,1720687832797,-6375.5642,0.000138,2]
[331715908,1720687832807,-1798.5812,0.000138,2]
[331715909,1720687832816,-150.0,0.00013822,2]
[331715910,1720687832825,-150.0,0.00013838,2]
[331715911,1720687832836,-150.0,0.00013845,2]
[331715912,1720687832846,-917.1382,0.0001386,2]
[331715913,1720687832856,-150.0,0.00013863,2]
[331715914,1720687832865,-150.0,0.00013865,2]
[331715915,1720687832877,-150.0,0.00013867,2]
[331715916,1720687832886,-255.0,0.00013881,2]
[331715917,1720687832898,-500.0,0.00013887,2]
[331715918,1720687832908,-500.0,0.00013888,2]
[331715919,1720687832918,-500.0,0.00013888,2]